bitfinex/quotes_ETHUSD_20240730
["timestamp","ask_amount","ask_price","bid_price","bid_amount"]
[1722336804427,1.56598737,3348.1,3347.9,0.10532723]
[1722336804876,1.56598737,3348.2,3347.9,3.09226723]
[1722336805081,1.56598737,3348.1,3347.9,3.09226723]
[1722336805369,1.56598737,3348.1,3347.9,0.10532723]
[1722336805586,1.56598737,3348.1,3347.4,5.31294]
[1722336805587,1.56598737,3348.0,3347.4,5.31294]
[1722336805798,1.56603793,3348.1,3348.0,0.10532723]
[1722336806071,5.21989194,3348.1,3347.7,2.98711]
[1722336806274,5.21989194,3348.1,3348.0,0.10532723]
[1722336806275,5.219897,3348.1,3348.0,0.10532723]
[1722336806460,0.66708257,3348.1,3347.7,2.98711]
[1722336806779,0.66708257,3348.1,3347.8,0.10532723]
[1722336806780,1.56612941,3348.0,3347.8,0.10532723]
[1722336807128,1.56612941,3348.0,3347.6,2.98721]
[1722336807337,4.55299941,3348.0,3347.7,0.10532723]
[1722336807643,4.55299941,3348.0,3347.6,2.98721]
[1722336807842,1.56612941,3348.0,3347.8,0.10532723]
[1722336808037,1.56612941,3348.0,3347.6,5.97435]
[1722336808243,1.56612941,3348.0,3347.9,0.10532723]
[1722336808472,2.27606314,3348.0,3347.6,2.98714]
[1722336808633,1.56612941,3348.0,3347.9,0.10532723]
[1722336808834,1.56612941,3348.1,3347.8,5.97392]
[1722336809171,1.56612941,3348.1,3347.9,0.10532723]
[1722336809377,1.56612941,3348.1,3347.9,3.09225723]
[1722336809592,1.56612941,3348.1,3348.0,2.98685]
[1722336809801,1.56643383,3348.1,3348.0,2.98685]
[1722336809954,1.56643383,3348.1,3348.0,3.0919015]
[1722336810160,1.56643383,3348.1,3348.0,0.1050515]
[1722336811596,0.64327444,3348.1,3348.0,0.1050515]
[1722336811797,0.64327444,3348.1,3347.7,2.98711]
[1722336812008,1.56655338,3348.0,3347.7,2.98711]
[1722336813216,4.55340456,3348.0,3347.6,2.9872]
[1722336813354,1.56654456,3348.0,3347.4,5.31292]
[1722336813555,0.64327444,3348.1,3347.4,5.31292]
[1722336813556,3.63004444,3348.1,3347.6,2.98717]
[1722336813769,2.22822217,3348.0,3347.6,2.98717]
[1722336814277,2.987,3347.9,3347.3,2.98742]
[1722336814478,1.56654673,3347.8,3347.4,2.98739]
[1722336814681,2.987,3347.9,3347.4,2.98739]
[1722336814682,4.55354673,3347.9,3347.4,2.98739]
[1722336814902,1.56654673,3347.8,3347.4,2.98739]
[1722336815056,5.26308456,3347.8,3347.4,2.98739]
[1722336815255,5.26308456,3347.8,3347.5,0.1050515]
[1722336815685,5.26330919,3347.8,3347.5,0.1050515]
[1722336816186,2.27627919,3347.8,3347.4,2.98735]
[1722336816358,3.64853544,3348.0,3347.6,0.1050515]
[1722336816554,1.5667663,3347.8,3347.6,0.1050515]
[1722336816866,1.5667663,3347.8,3347.4,2.98738]
[1722336817424,1.5667663,3347.8,3347.5,0.1050515]
[1722336817742,5.56204343,3347.8,3347.5,0.1050515]
[1722336819781,2.5750176,3347.8,3347.5,3.0923515]
[1722336820103,1.56678047,3347.8,3347.5,3.0923515]
[1722336820630,1.56675608,3347.8,3347.5,3.0923515]
[1722336821585,1.56675608,3347.8,3347.5,3.01754144]
[1722336821830,1.56675608,3347.8,3347.5,3.08992046]
[1722336822489,2.98712,3347.7,3347.5,0.10262046]
[1722336822740,2.98721,3347.6,3347.5,0.10262046]
[1722336823185,4.55403219,3347.6,3347.1,2.98759]
[1722336823386,4.55403219,3347.6,3347.2,0.10262046]
[1722336823696,4.55403219,3347.6,3347.2,3.09018046]
[1722336823697,1.56686609,3347.6,3347.2,3.09018046]
[1722336824026,4.55411609,3347.6,3347.2,0.10262046]
[1722336824226,5.70544132,3347.6,3347.2,0.10262046]
[1722336824929,5.70548727,3347.6,3347.2,0.10262046]
[1722336825497,4.13857523,3347.6,3347.2,0.10262046]
[1722336825746,2.98731,3347.5,3347.2,0.10262046]
[1722336826028,5.70550088,3347.6,3347.2,0.10262046]
[1722336826387,5.70554265,3347.6,3347.2,3.09018046]
[1722336826883,5.70554265,3347.6,3347.2,0.10262046]
[1722336828088,5.70554265,3347.6,3347.2,3.09017046]
[1722336828489,4.55421742,3347.6,3347.2,3.09017046]
[1722336829627,2.9873,3347.5,3347.2,0.10262046]
[1722336829832,2.98745,3347.4,3347.2,0.10262046]
[1722336830042,4.55448639,3347.3,3346.8,2.98788]
[1722336830536,1.56700639,3347.2,3346.8,2.98788]
[1722336831133,1.56718079,3347.2,3346.8,2.98788]
[1722336832194,1.56718079,3347.2,3346.8,5.97574]
[1722336832364,1.56718079,3347.2,3346.8,2.98786]
[1722336833037,1.56718079,3347.2,3346.8,5.97574]
[1722336833236,1.5671118,3347.2,3346.8,2.98786]
[1722336833436,1.5671118,3347.2,3346.8,5.97572]
[1722336833618,2.98748,3347.3,3346.9,2.98783]
[1722336833822,1.56708557,3347.2,3347.0,2.98774]
[1722336834054,1.56708557,3347.3,3347.1,3.4801]
[1722336834263,1.56708557,3347.4,3347.2,2.98757]
[1722336834554,1.56708557,3347.5,3347.1,6.46771]
[1722336834853,4.55434557,3347.6,3347.1,6.46771]
[1722336835212,1.56708557,3347.5,3347.1,6.46771]
[1722336835413,2.98726,3347.6,3347.1,6.46771]
[1722336835646,1.56720642,3347.5,3347.1,6.46771]
[1722336835842,2.98751,3347.3,3346.9,2.98777]
[1722336836005,4.55471642,3347.3,3346.9,2.98777]
[1722336836505,1.56740863,3347.2,3346.9,2.98777]
[1722336837136,7.54246863,3347.3,3346.8,3.9729]
[1722336837342,4.55491863,3347.3,3346.8,6.96075]
[1722336837564,4.55491863,3347.3,3346.9,0.10278757]
[1722336837565,1.56740863,3347.2,3346.9,0.10278757]
[1722336838116,4.55491863,3347.3,3346.9,0.10278757]
[1722336839051,1.56740863,3347.2,3346.9,0.10278757]
[1722336839631,2.98751,3347.3,3346.9,0.10278757]
[1722336839838,1.56760119,3347.2,3346.9,0.10278757]
[1722336840167,1.56760119,3347.2,3346.9,3.09054757]
[1722336840350,4.55508119,3347.3,3346.9,0.10278757]
[1722336840551,1.56760119,3347.2,3346.9,0.10278757]
[1722336841571,4.55508119,3347.3,3346.9,3.09061757]
[1722336841771,1.56760119,3347.2,3346.9,3.09061757]
[1722336842082,1.56771785,3347.2,3346.9,3.09061757]
[1722336842221,1.56771785,3347.2,3346.9,0.10278757]
[1722336842629,4.55540903,3347.2,3346.9,0.10278757]
[1722336842882,1.56779903,3347.2,3346.9,0.10278757]
[1722336844768,4.55539903,3347.2,3346.9,0.10278757]
[1722336845267,2.9876,3347.2,3346.9,0.10278757]
[1722336845443,4.55541402,3347.2,3346.9,0.10278757]
[1722336846967,2.9877,3347.1,3346.9,0.10278757]
[1722336847172,2.9877,3347.1,3346.7,2.3313]
[1722336847668,1.56781402,3347.2,3346.8,0.1029338]
[1722336847828,2.98776,3347.0,3346.8,0.1029338]
[1722336848432,2.98776,3347.0,3346.6,0.985]
[1722336848626,2.98784,3346.9,3346.6,0.985]
[1722336849965,1.56757601,3347.0,3346.6,0.985]
[1722336849966,4.55532601,3347.0,3346.6,0.985]
[1722336850130,4.55532601,3347.0,3346.6,3.9731]
[1722336850330,1.56757601,3347.0,3346.6,3.9731]
[1722336850556,1.56757601,3347.0,3346.6,3.97305]
[1722336850766,2.9877,3347.1,3346.7,2.98797]
[1722336850767,1.56757601,3347.1,3346.7,2.98797]
[1722336851281,1.56757601,3347.1,3346.8,3.97288]
[1722336851446,1.56757601,3347.3,3346.9,5.30529]
[1722336851995,1.56731667,3347.4,3347.3,2.98748]
[1722336852134,1.56731667,3347.6,3347.4,2.98739]
[1722336852335,2.98704,3347.8,3347.3,2.98744]
[1722336852644,5.36655586,3347.9,3347.4,5.45994]
[1722336852645,1.56730774,3347.6,3347.4,5.45994]
[1722336853250,10.23428515,3347.9,3347.4,5.45994]
[1722336853251,9.80159289,3347.9,3347.4,5.45994]
[1722336853532,0.15209693,3347.8,3347.4,5.45994]
[1722336853762,2.98696,3347.9,3347.4,5.45994]
[1722336853971,0.15209693,3347.8,3347.4,5.45994]
[1722336854172,2.98696,3347.9,3347.4,5.45994]
[1722336854343,0.15209622,3347.8,3347.4,5.45994]
[1722336854540,5.97397,3347.9,3347.4,5.45994]
[1722336854807,0.15209559,3347.8,3347.4,5.45994]
[1722336855146,4.86786527,3347.9,3347.4,5.45994]
[1722336855311,0.15209792,3347.8,3347.4,5.45994]
[1722336855510,4.86805886,3347.9,3347.4,5.45994]
[1722336855729,0.1520979,3347.8,3347.4,5.45994]
[1722336856033,4.86805886,3347.9,3347.4,5.45994]
[1722336856232,0.15209721,3347.8,3347.4,5.45994]
[1722336856537,4.86805886,3347.9,3347.4,5.45994]
[1722336856706,0.15209722,3347.8,3347.4,5.45994]
[1722336857041,4.86805886,3347.9,3347.4,5.45994]
[1722336857337,0.15209718,3347.8,3347.4,5.45994]
[1722336857536,4.86805886,3347.9,3347.4,5.45994]
[1722336857736,0.1520971,3347.8,3347.4,5.45994]
[1722336858031,4.86805886,3347.9,3347.4,5.45994]
[1722336858237,0.1520971,3347.8,3347.5,2.98729]
[1722336858453,2.98695,3347.9,3347.5,2.98729]
[1722336858659,0.15209576,3347.8,3347.4,5.45998]
[1722336858869,4.86858301,3347.9,3347.4,5.45998]
[1722336859065,0.15209651,3347.8,3347.4,5.45998]
[1722336859225,7.85560301,3347.9,3347.4,5.45998]
[1722336859429,0.15209651,3347.8,3347.4,5.45998]
[1722336859743,7.85560301,3347.9,3347.4,5.45998]
[1722336860059,0.15209538,3347.8,3347.5,0.10302156]
[1722336860253,7.85560301,3347.9,3347.5,0.10302156]
[1722336860461,0.15209649,3347.8,3347.5,0.10302156]
[1722336860641,5.97442,3347.6,3347.5,0.10302156]
[1722336860843,6.1265211,3347.6,3347.5,0.10302156]
[1722336861058,6.6765211,3347.6,3347.5,0.10302156]
[1722336861271,2.98745,3347.4,3346.9,5.30063]
[1722336861770,2.98761,3347.2,3346.7,3.97297]
[1722336861972,2.98749,3347.3,3346.8,2.98788]
[1722336863236,2.98771,3347.1,3346.7,0.985]
[1722336863695,2.98771,3347.1,3346.4,37.98822]
[1722336863696,2.98788,3346.9,3346.4,37.98823]
[1722336863830,2.98776,3347.0,3346.5,2.98819]
[1722336864154,2.98776,3347.0,3346.4,37.98827]
[1722336864155,2.98784,3346.9,3346.4,37.98827]
[1722336864355,2.98784,3346.9,3346.4,38.97322]
[1722336865133,2.98784,3346.9,3346.4,37.98822]
[1722336865331,2.98784,3346.9,3346.4,35.985]
[1722336865524,2.98793,3346.8,3346.4,35.985]
[1722336865729,2.98793,3346.8,3346.4,38.97327]
[1722336867102,2.98793,3346.8,3346.4,35.985]
[1722336867399,2.98815,3346.6,3346.2,0.985]
[1722336867879,3.77376231,3346.8,3346.2,41.96179]
[1722336867880,2.98802,3346.7,3346.2,41.96179]
[1722336868082,2.98802,3346.7,3346.2,38.97339]
[1722336868281,2.98802,3346.7,3346.2,41.96179]
[1722336868429,2.98802,3346.7,3346.2,38.97339]
[1722336870036,2.98802,3346.7,3346.2,41.9618]
[1722336870260,1.88247027,3347.0,3346.2,41.9618]
[1722336870261,1.88247027,3347.0,3346.2,38.97339]
[1722336870435,2.98794,3346.8,3346.4,3.97326]
[1722336870643,2.98794,3346.8,3346.4,0.985]
[1722336870976,5.97594,3346.8,3346.3,2.98836]
[1722336871161,2.98814,3346.6,3346.2,0.985]
[1722336871341,2.98814,3346.6,3346.2,35.985]
[1722336872564,2.98821,3346.5,3346.2,35.0]
[1722336872938,2.98821,3346.5,3346.0,6.39683]
[1722336873569,2.98821,3346.5,3346.1,35.0]
[1722336875147,2.98821,3346.5,3346.2,0.09993341]
[1722336876874,2.98821,3346.5,3346.0,6.39678]
[1722336877076,2.98821,3346.5,3346.3,0.09993341]
[1722336877273,2.98821,3346.5,3346.1,37.98855]
[1722336877502,2.98821,3346.5,3346.4,0.09993341]
[1722336877701,2.98821,3346.5,3346.1,37.98855]
[1722336878160,2.98821,3346.5,3346.2,0.09993341]
[1722336880306,2.98815,3346.6,3346.2,0.09993341]
[1722336880862,2.98819,3346.5,3346.2,0.09993341]
[1722336881274,2.98793,3346.8,3346.2,1.08493341]
[1722336881483,1.88067753,3347.0,3346.3,2.9883]
[1722336881484,2.98791,3346.9,3346.3,2.9883]
[1722336881681,2.98797,3346.8,3346.3,2.9883]
[1722336882081,2.98797,3346.8,3346.4,0.09993341]
[1722336882386,2.98784,3346.9,3346.4,3.08820341]
[1722336882794,2.98784,3346.9,3346.4,38.08820341]
[1722336883200,2.98784,3346.9,3346.4,3.08820341]
[1722336883728,2.86526664,3347.2,3346.7,2.98801]
[1722336883729,2.98758,3347.2,3346.7,2.98801]
[1722336883894,2.98767,3347.1,3346.6,0.985]
[1722336884096,2.98767,3347.1,3346.8,0.09984168]
[1722336884423,2.98767,3347.1,3346.9,0.09984168]
[1722336884578,2.98767,3347.1,3346.6,3.9731]
[1722336884780,2.98767,3347.1,3346.7,0.09984168]
[1722336887053,5.9754,3347.1,3346.7,0.09984168]
[1722336887254,2.98784,3346.9,3346.7,0.09984168]
[1722336887415,2.98784,3346.9,3346.5,2.3297]
[1722336887615,2.98784,3346.9,3346.6,0.09984168]
[1722336887854,2.98792,3346.8,3346.6,0.09984168]
[1722336888156,2.98792,3346.8,3346.2,2.98839]
[1722336888157,2.98801,3346.7,3346.2,2.98839]
[1722336888456,2.98801,3346.7,3346.3,2.98837]
[1722336890145,2.98801,3346.7,3346.4,0.09984168]
[1722336891449,2.98793,3346.8,3346.4,3.08812168]
[1722336891642,2.98793,3346.8,3346.4,5.56392168]
[1722336892141,2.98793,3346.8,3346.4,2.57564168]
[1722336892384,2.98793,3346.8,3346.4,0.09984168]
[1722336892957,5.97593,3346.8,3346.4,0.09984168]
[1722336893252,2.98793,3346.8,3346.4,0.09984168]
[1722336893553,5.97593,3346.8,3346.4,0.09984168]
[1722336894057,2.98793,3346.8,3346.4,0.09984168]
[1722336894730,2.98819,3346.5,3346.4,0.09984168]
[1722336894932,2.98811,3346.6,3346.4,0.09984168]
[1722336895130,5.97629,3346.6,3346.1,2.98855]
[1722336895318,5.97629,3346.6,3346.5,0.09985836]
[1722336895657,2.98811,3346.6,3346.5,0.09985836]
[1722336895861,2.98811,3346.6,3346.1,2.98855]
[1722336896157,2.98811,3346.6,3346.2,0.09985836]
[1722336896665,5.97629,3346.6,3346.2,0.09985836]
[1722336896967,2.98819,3346.5,3346.2,0.09985836]
[1722336897153,2.98837,3346.3,3346.2,0.09985836]
[1722336897352,2.98848,3346.2,3345.7,2.313]
[1722336897554,2.98848,3346.2,3345.6,3.97395]
[1722336898127,2.98848,3346.2,3345.6,2.98895]
[1722336899023,2.98868,3346.0,3345.6,2.98895]
[1722336899224,2.98843,3346.3,3345.7,2.9889]
[1722336899567,2.9885,3346.2,3345.7,2.9889]
[1722336900077,2.98855,3346.1,3345.7,2.9889]
[1722336900274,2.98855,3346.1,3345.6,0.985]
[1722336900569,2.98872,3346.0,3345.4,38.3405]
[1722336900775,2.98895,3345.7,3345.2,3.97435]
[1722336901228,2.98895,3345.7,3345.2,38.97435]
[1722336902171,2.98883,3345.8,3345.3,2.98926]
[1722336903569,3.5387,3346.0,3345.5,2.98903]
[1722336903773,0.55,3346.0,3345.6,2.98899]
[1722336903935,6.52718,3346.1,3345.6,2.98899]
[1722336904252,3.53856,3346.1,3345.6,3.97399]
[1722336905072,3.53856,3346.1,3345.7,0.09697787]
[1722336905459,2.98847,3346.2,3345.7,3.08587787]
[1722336905773,2.98847,3346.2,3345.7,3.08582787]
[1722336905936,5.97653,3346.5,3345.9,2.98871]
[1722336906142,0.70217176,3346.4,3345.9,2.98871]
[1722336906341,0.55,3346.4,3345.9,2.98871]
[1722336906570,0.55,3346.4,3346.0,0.09697787]
[1722336906888,2.98811,3346.6,3346.1,2.98851]
[1722336907053,3.97294,3346.8,3346.1,2.2573]
[1722336907054,4.17860436,3346.8,3346.1,2.2573]
[1722336907253,2.98815,3346.6,3346.1,5.24583]
[1722336907777,2.98815,3346.6,3346.2,0.09697787]
[1722336908679,2.9882,3346.5,3346.2,0.09697787]
[1722336909984,2.98814,3346.6,3346.2,0.09697787]
[1722336910156,0.15215265,3346.5,3346.2,0.09697787]
[1722336910343,2.98814,3346.6,3346.2,0.09697787]
[1722336910545,0.15215671,3346.5,3346.2,0.09697787]
[1722336910768,2.98823,3346.5,3346.2,0.09697787]
[1722336912963,2.98829,3346.4,3346.0,2.98864]
[1722336913166,2.98829,3346.4,3346.3,0.09688611]
[1722336913488,2.98844,3346.3,3345.8,6.37737]
[1722336913693,2.98844,3346.3,3345.8,5.39237]
[1722336914488,2.98848,3346.2,3345.8,2.4036]
[1722336915319,2.98838,3346.3,3345.8,5.39237]
[1722336915708,2.98859,3346.1,3345.6,2.98896]
[1722336915912,2.98838,3346.3,3345.7,2.98889]
[1722336915913,2.98847,3346.2,3345.7,2.98889]
[1722336916246,2.98847,3346.2,3345.7,3.97386]
[1722336917095,2.98847,3346.2,3345.7,6.96271]
[1722336917613,2.98847,3346.2,3345.7,3.97385]
[1722336918948,2.98864,3346.0,3345.6,2.98899]
[1722336919098,2.98847,3346.2,3345.6,2.98899]
[1722336919099,2.98859,3346.1,3345.6,2.98899]
[1722336919731,2.98865,3346.0,3345.6,2.98899]
[1722336920099,2.98865,3346.0,3345.7,0.09688611]
[1722336921415,2.98856,3346.1,3345.7,0.09688611]
[1722336921744,2.98856,3346.1,3345.7,3.08578611]
[1722336922115,2.98841,3346.3,3345.8,2.9888]
[1722336922459,2.98841,3346.3,3346.0,2.3734]
[1722336922866,2.98841,3346.3,3346.1,0.09700287]
[1722336923561,1.88131624,3346.7,3346.1,1.08200287]
[1722336923740,9.80275984,3347.2,3346.6,0.985]
[1722336924072,2.98757,3347.2,3346.7,2.98801]
[1722336924235,2.98757,3347.2,3346.7,3.08501287]
[1722336924563,2.98773,3347.1,3346.7,0.09700287]
[1722336924923,4.86786183,3347.4,3346.7,0.09700287]
[1722336925122,2.98757,3347.2,3346.7,3.08501287]
[1722336925871,6.20958573,3347.4,3346.7,0.09700287]
[1722336926211,3.985,3347.6,3347.1,2.98761]
[1722336926212,1.88043183,3347.6,3347.1,2.98761]
[1722336926481,2.98706,3347.8,3347.2,0.985]
[1722336926482,2.98718,3347.7,3347.2,0.985]
[1722336926758,2.98718,3347.7,3346.9,2.4049]
[1722336926759,2.98727,3347.6,3347.0,0.985]
[1722336927064,5.97455,3347.6,3347.0,3.97273]
[1722336927268,5.97455,3347.6,3347.1,0.09700287]
[1722336927269,2.98727,3347.6,3347.1,0.09700287]
[1722336927441,2.98727,3347.6,3347.1,2.98763]
[1722336927643,4.9338636,3347.9,3347.2,0.09700287]
[1722336927837,2.98713,3347.7,3347.2,0.09700287]
[1722336928976,2.98713,3347.7,3347.2,3.08456287]
[1722336930831,2.9869,3348.0,3347.3,2.98748]
[1722336931067,4.86465214,3348.1,3347.5,2.98728]
[1722336931379,2.9869,3348.0,3347.6,0.09611488]
[1722336931729,5.97382,3348.0,3347.6,0.09611488]
[1722336931930,2.98695,3347.9,3347.6,0.09611488]
[1722336932134,2.98703,3347.8,3347.6,0.09611488]
[1722336932330,0.826424,3348.1,3347.2,2.98754]
[1722336932331,2.98712,3347.7,3347.2,2.98754]
[1722336934038,2.98701,3347.9,3347.3,2.98743]
[1722336934644,2.98704,3347.8,3347.3,2.98743]
[1722336935138,2.98704,3347.8,3347.4,0.0960732]
[1722336937599,2.98714,3347.7,3347.4,0.0960732]
[1722336937796,2.98727,3347.6,3347.4,0.0960732]
[1722336938011,2.98727,3347.6,3347.0,2.98771]
[1722336938177,2.98727,3347.6,3347.5,0.09606487]
[1722336938178,5.24867,3347.6,3347.5,0.09606487]
[1722336938365,5.24867,3347.6,3346.9,5.39273]
[1722336938366,2.98739,3347.4,3346.9,5.39273]
[1722336938710,2.98739,3347.4,3346.9,2.4049]
[1722336939313,2.98739,3347.4,3346.7,2.98797]
[1722336939477,2.98739,3347.4,3346.9,2.98783]
[1722336939803,5.97485,3347.4,3346.9,2.98783]
[1722336940179,2.98739,3347.4,3346.9,2.98783]
[1722336940509,2.98755,3347.3,3346.8,2.98792]
[1722336940710,2.98757,3347.2,3346.6,2.4307]
[1722336940911,2.9877,3347.1,3346.6,5.4188]
[1722336941534,2.98757,3347.2,3346.7,2.98796]
[1722336943242,2.98776,3347.0,3346.6,2.4307]
[1722336943542,2.98773,3347.1,3346.6,5.41874]
[1722336943694,5.97546,3347.1,3346.6,5.41874]
[1722336943896,2.98773,3347.1,3346.6,5.41874]
[1722336944637,2.98748,3347.3,3346.8,2.98788]
[1722336946137,2.98748,3347.3,3346.8,2.98786]
[1722336946713,2.98748,3347.3,3346.8,5.97573]
[1722336947339,2.98766,3347.1,3346.6,6.40375]
[1722336947843,2.98775,3347.0,3346.6,3.4157]
[1722336948346,0.597533,3346.9,3346.4,35.0]
[1722336948549,2.98806,3346.7,3346.4,35.0]
[1722336948713,2.3077,3347.1,3346.4,35.0]
[1722336948714,2.98784,3346.9,3346.4,35.0]
[1722336949254,5.97616,3346.7,3346.4,35.0]
[1722336949457,2.98807,3346.7,3346.4,35.0]
[1722336949640,5.97616,3346.7,3346.4,35.0]
[1722336949822,2.98807,3346.7,3346.4,35.0]
[1722336950032,2.98812,3346.6,3346.5,0.08989784]
[1722336950432,2.98812,3346.6,3346.2,2.98844]
[1722336950433,3.47056299,3346.6,3346.0,5.35469]
[1722336950665,2.98833,3346.4,3346.0,2.3661]
[1722336950845,2.98833,3346.4,3346.1,0.08989784]
[1722336951344,2.98792,3346.8,3346.1,0.08989784]
[1722336951543,5.97692,3346.2,3346.1,0.08989784]
[1722336952028,3.9733,3346.4,3345.5,35.0]
[1722336952029,2.98877,3345.9,3345.5,35.0]
[1722336952428,2.98877,3345.9,3345.6,0.09041061]
[1722336952624,5.97782,3345.7,3345.6,0.09041061]
[1722336953026,2.98907,3345.6,3345.1,35.0]
[1722336953224,2.98891,3345.7,3345.2,0.985]
[1722336953432,2.98891,3345.7,3345.2,1.07559827]
[1722336953972,2.98886,3345.8,3345.2,4.06489827]
[1722336954169,2.4461,3346.0,3345.4,0.985]
[1722336954170,2.98868,3346.0,3345.4,0.985]
[1722336954382,2.98868,3346.0,3345.5,5.45828]
[1722336954561,2.9886,3346.1,3345.6,3.97398]
[1722336954886,2.9886,3346.1,3345.6,4.06457827]
[1722336955083,2.98838,3346.3,3345.6,4.06452827]
[1722336955371,2.98846,3346.2,3345.6,0.09059827]
[1722336955546,2.98846,3346.2,3345.7,2.9889]
[1722336956368,2.98846,3346.2,3345.8,0.09059827]
[1722336956802,2.4741,3346.6,3345.8,0.09059827]
[1722336956803,2.98862,3346.1,3345.8,0.09059827]
[1722336957302,2.98862,3346.1,3345.9,0.09059827]
[1722336957501,5.97724,3346.1,3345.5,5.45824]
[1722336957671,5.97724,3346.1,3345.6,0.09059827]
[1722336957672,0.597724,3346.1,3345.6,0.09059827]
[1722336958005,0.597724,3346.1,3345.2,2.4675]
[1722336958006,2.98895,3345.7,3345.2,5.45685]
[1722336958165,2.9889,3345.8,3345.2,2.4675]
[1722336958166,2.98901,3345.6,3345.2,2.4675]
[1722336959998,2.98901,3345.6,3345.1,37.98942]
[1722336961074,2.98888,3345.8,3345.2,2.98931]
[1722336961399,2.98891,3345.7,3345.2,2.98931]
[1722336964510,3.518281,3345.7,3345.0,2.98952]
[1722336964713,3.518281,3345.7,3345.2,35.0]
[1722336964714,2.98922,3345.4,3345.2,35.0]
[1722336965068,2.98922,3345.4,3345.3,0.09121559]
[1722336965319,0.529371,3345.7,3344.9,2.4675]
[1722336965320,2.98913,3345.5,3344.9,2.4675]
[1722336965465,2.98927,3345.3,3345.0,0.09121559]
[1722336965663,2.98927,3345.3,3345.1,35.0]
[1722336965868,2.98944,3345.1,3344.6,2.98988]
[1722336966172,2.98953,3345.0,3344.7,0.09121559]
[1722336966373,5.9788,3345.2,3344.7,35.09121559]
[1722336966583,2.98946,3345.1,3344.7,35.09121559]
[1722336972779,2.98971,3344.8,3344.7,0.09121559]
[1722336973123,2.98971,3344.8,3344.2,5.38284]
[1722336973277,2.98971,3344.8,3343.2,14.777]
[1722336973278,2.98991,3344.6,3344.3,0.0915244]
[1722336973481,2.98999,3344.5,3343.9,5.38307]
[1722336973790,2.98999,3344.5,3344.0,0.09185406]
[1722336974384,0.22668,3344.8,3344.0,0.09185406]
[1722336974385,2.98992,3344.6,3344.0,0.09185406]
[1722336974636,2.99009,3344.4,3344.0,0.09185406]
[1722336976652,2.98992,3344.6,3344.0,0.09185406]
[1722336976947,2.98992,3344.6,3344.0,3.08222406]
[1722336977941,2.98999,3344.5,3344.0,0.09185406]
[1722336978248,2.98999,3344.5,3344.0,3.08227406]
[1722336978411,2.98989,3344.6,3344.0,3.08227406]
[1722336978610,2.98989,3344.6,3344.0,6.07256406]
[1722336978851,2.98989,3344.6,3344.1,2.99033]
[1722336979340,2.98998,3344.5,3344.2,0.09210455]
[1722336979516,2.98998,3344.5,3344.0,2.99042]
[1722336979746,2.98998,3344.5,3344.1,0.09210455]
[1722336981509,2.98989,3344.6,3344.1,0.09210455]
[1722336981936,2.98989,3344.6,3344.1,3.08242455]
[1722336983175,5.97986,3344.6,3344.1,0.09210455]
[1722336983377,3.837204,3344.6,3344.1,0.09210455]
[1722336984445,2.99011,3344.4,3344.1,0.09210455]
[1722336984640,2.99023,3344.3,3343.8,2.99056]
[1722336984887,2.99023,3344.3,3344.2,0.09227989]
[1722336985069,3.6729954,3344.3,3343.8,2.99056]
[1722336985280,2.99023,3344.3,3344.2,0.09227989]
[1722336985440,2.99023,3344.3,3343.8,2.99056]
[1722336985646,2.99023,3344.3,3344.2,0.09227989]
[1722336985847,2.99023,3344.3,3343.8,2.99056]
[1722336986072,2.99023,3344.3,3344.2,0.09227989]
[1722336986295,3.6729954,3344.3,3343.8,2.99056]
[1722336986600,2.99023,3344.3,3343.8,2.99056]
[1722336986891,2.99023,3344.3,3343.9,0.09227989]
[1722336987265,2.99026,3344.2,3343.9,0.09227989]
[1722336987646,2.99026,3344.2,3343.7,2.99065]
[1722336987891,2.99023,3344.3,3344.0,0.09227989]
[1722336988095,2.99038,3344.1,3343.6,5.48287]
[1722336988402,2.99025,3344.2,3343.6,5.48287]
[1722336988691,2.99048,3344.0,3343.6,2.4921]
[1722336989390,5.98097,3344.0,3343.6,2.4921]
[1722336989592,2.99048,3344.0,3343.6,2.4921]
[1722336990070,2.99026,3344.2,3343.7,2.99064]
[1722336990303,2.99026,3344.2,3343.7,2.99068]
[1722336990613,5.98059,3344.2,3343.7,2.99068]
[1722336991037,2.99026,3344.2,3343.6,2.4921]
[1722336991193,2.99031,3344.2,3343.6,2.4921]
[1722336991526,2.99048,3344.0,3343.6,2.4921]
[1722336991743,2.99048,3344.0,3343.1,0.2995]
[1722336991744,2.99052,3343.9,3343.3,5.44906]
[1722336991899,2.99062,3343.8,3343.3,5.44906]
[1722336994440,2.9907,3343.7,3343.3,2.4581]
[1722336995222,2.9907,3343.7,3343.4,0.09227989]
[1722336996021,2.9908,3343.6,3343.4,0.09227989]
[1722336996203,2.9908,3343.6,3343.1,2.99123]
[1722336996395,2.99088,3343.5,3343.0,2.357]
[1722336997027,2.99079,3343.6,3343.0,2.357]
[1722336997230,2.99058,3343.9,3343.3,2.99103]
[1722336997427,2.99071,3343.7,3343.2,2.99114]
[1722336997961,2.99058,3343.9,3343.1,2.99118]
[1722336997962,2.99057,3343.9,3343.1,2.99118]
[1722336998162,2.99057,3343.9,3343.3,2.99105]
[1722336998669,2.99061,3343.8,3343.3,2.99105]
[1722337000275,2.99052,3343.9,3343.4,2.99096]
[1722337000481,2.99039,3344.1,3343.5,2.99082]
[1722337000688,2.99039,3344.1,3343.6,5.47413]
[1722337001233,2.4213,3344.5,3343.6,2.4834]
[1722337001234,2.99058,3343.9,3343.6,2.4834]
[1722337001529,2.99058,3343.9,3343.5,0.987]
[1722337001773,2.99075,3343.7,3343.2,2.99114]
[1722337001987,2.99075,3343.7,3343.3,0.987]
[1722337002273,2.99079,3343.6,3343.2,0.987]
[1722337002983,2.99089,3343.5,3343.2,0.987]
[1722337004751,2.99098,3343.4,3343.2,0.987]
[1722337005465,2.99088,3343.5,3343.2,0.987]
[1722337005769,2.99088,3343.5,3342.4,5.99182]
[1722337005770,3.99861703,3343.5,3342.5,0.987]